Workbook

Sheet Sheet1 (hidden)

Sheet Sheet2 (hidden)

Sheet Employee
B2: Hiding Multiple Sheets from Protected Workbook
B4: Employee Name | C4: Employee ID | D4: Department | E4: Joining Date
B5: Adam | C5: 102 | D5: Finance | E5: 2023-02-02
B6: Jhon | C6: 105 | D6: Sales | E6: 2023-02-20
B7: Mira | C7: 107 | D7: Finance | E7: 2023-03-01
B8: Alisa | C8: 108 | D8: Marketing | E8: 2023-03-10
B9: Sheldon | C9: 106 | D9: Sales | E9: 2023-02-25
B10: Stuart | C10: 101 | D10: Marketing | E10: 2023-01-15
B11: Natasha | C11: 110 | D11: Marketing | E11: 2023-03-15
B12: Harry | C12: 111 | D12: Finance | E12: 2023-03-25
D24: `

Sheet Sales
B2: Hiding Multiple Sheets with Specific Name
B4: Product | C4: Jan | D4: Feb | E4: Mar
B5: Laptop | C5: 250 | D5: 300 | E5: 400
B6: Smart Phone | C6: 380 | D6: 270 | E6: 350
B7: Tablet | C7: 100 | D7: 110 | E7: 80
B8: Keyboard | C8: 200 | D8: 170 | E8: 230
B9: Mouse | C9: 300 | D9: 310 | E9: 240
B10: Pen Drive | C10: 180 | D10: 130 | E10: 170
B11: Head Phone | C11: 180 | D11: 170 | E11: 250
B12: Gaming Console | C12: 150 | D12: 200 | E12: 140
B14: Instruction
B15: Hide

Sheet Revenue
B2: Using Specific Value from Sheets to Hide Multiple Sheets
B4: Product | C4: Jan | D4: Feb | E4: Mar
B5: Laptop | C5: 80000 | D5: 120000 | E5: 110000
B6: Smart Phone | C6: 45000 | D6: 70000 | E6: 50000
B7: Tablet | C7: 20000 | D7: 15000 | E7: 25000
B8: Keyboard | C8: 12000 | D8: 10000 | E8: 5000
B9: Mouse | C9: 3000 | D9: 4500 | E9: 5000
B10: Pen Drive | C10: 1800 | D10: 1200 | E10: 1500
B11: Head Phone | C11: 3500 | D11: 5000 | E11: 6500
B12: Gaming Console | C12: 2500 | D12: 3000 | E12: 2000

Sheet Profit
B2: Profit Data
B4: Product | C4: Jan | D4: Feb | E4: Mar
B5: Laptop | C5: =Revenue!C5*0.2 -> 16000 | D5: =Revenue!D5*0.2 -> 24000 | E5: =Revenue!E5*0.2 -> 22000
B6: Smart Phone | C6: =Revenue!C6*0.2 -> 9000 | D6: =Revenue!D6*0.2 -> 14000 | E6: =Revenue!E6*0.2 -> 10000
B7: Tablet | C7: =Revenue!C7*0.2 -> 4000 | D7: =Revenue!D7*0.2 -> 3000 | E7: =Revenue!E7*0.2 -> 5000
B8: Keyboard | C8: =Revenue!C8*0.2 -> 2400 | D8: =Revenue!D8*0.2 -> 2000 | E8: =Revenue!E8*0.2 -> 1000
B9: Mouse | C9: =Revenue!C9*0.2 -> 600 | D9: =Revenue!D9*0.2 -> 900 | E9: =Revenue!E9*0.2 -> 1000
B10: Pen Drive | C10: =Revenue!C10*0.2 -> 360 | D10: =Revenue!D10*0.2 -> 240 | E10: =Revenue!E10*0.2 -> 300
B11: Head Phone | C11: =Revenue!C11*0.2 -> 700 | D11: =Revenue!D11*0.2 -> 1000 | E11: =Revenue!E11*0.2 -> 1300
B12: Gaming Console | C12: =Revenue!C12*0.2 -> 500 | D12: =Revenue!D12*0.2 -> 600 | E12: =Revenue!E12*0.2 -> 400
B14: Instruction
B15: Hide

Sheet Sheet_Name
B2: Hiding Multiple Sheets with Button
B4: Sheet Name
B5: Employee
B6: Sales
B7: Revenue
B8: Profit
